Cogmind - Beta 13 @@@ ROGUE MODE // 2024.02.27 @ 22:18:42 Player: Ug9 Result: Destroyed by G-34 Mercenary with Small Laser Performance ------------- Evolutions (0) 0 Regions Visited (1) 200 Robots Destroyed (1) 5 Value Destroyed (34) 34 Prototype IDs (0) 0 Alien Tech Used (0) 0 Bonus (0) 0 TOTAL SCORE: 239 Bonus ------- None Cogmind --------- Core Integrity 0/250 Matter 261/300 Energy 99/100 System Corruption 0% Temperature Cool (69) Movement Rolling (115) Ox1 Location -10/Materials Parts ------- > --- POWER (1) -------- (None) > --- PROPULSION (2) --- Compact Wheel Compact Wheel > --- UTILITY (2) ------ Large Storage Unit > --- WEAPON (2) ------- Light Assault Rifle > --- INVENTORY (15) --- Ion Engine Light Ion Engine Aluminum Leg Aluminum Leg Aluminum Leg Small Storage Unit Peak State ------------ > --- POWER ------------ Ion Engine > --- PROPULSION ------- Compact Wheel Compact Wheel > --- UTILITY ---------- Large Storage Unit > --- WEAPON ----------- Assault Rifle Light Assault Rifle > --- INVENTORY -------- Light Ion Engine Aluminum Leg Small Storage Unit [Rating: 6] Favorites ----------- Power Ion Engine Engine Ion Engine Propulsion Aluminum Leg Leg Aluminum Leg Wheel Compact Wheel Utility Large Storage Unit Storage Large Storage Unit Weapon Assault Rifle Energy Gun EM Pulse Gun Ballistic Gun Assault Rifle Build | -11 -10 ------- Run | Yrd Mat Slots Evolved . | . . Power . | . . Propulsion . | . . Utility . | . . Weapon . | . . Parts Attached 10 | 8 2 Power 1 | 1 . Engine 1 | 1 . Core . | . . Reactor . | . . Propulsion 4 | 4 . Treads . | . . Leg 2 | 2 . Wheel 2 | 2 . Hover . | . . Flight . | . . Utility 1 | . 1 Device . | . . Storage 1 | . 1 Processor . | . . Hackware . | . . Protection . | . . Artifact . | . . Weapon 4 | 3 1 Energy Gun 2 | 1 1 Energy Cannon . | . . Ballistic Gun 2 | 2 . Ballistic Cannon . | . . Launcher . | . . Special Weapon . | . . Impact Weapon . | . . Slashing Weapon . | . . Piercing Weapon . | . . Special Melee Weapon . | . . Unidentified Prototypes . | . . Parts Lost 5 | 2 3 Power 1 | . 1 Propulsion 1 | 1 . Utility . | . . Weapon 3 | 1 2 Highest Loss Streak 3 | 2 3 To Critical Strikes . | . . Average Slot Usage (%) 84 | . 84 Engine 14 | . 14 Wheel 28 | . 28 Storage 13 | . 13 Energy Gun 3 | . 3 Ballistic Gun 25 | . 25 Naked Turns . | . . Heaviest Build 28 | 9 28 Greatest Support 32 | 32 32 Greatest Overweight (x) 1 | . 1 Average Overweight (x) . | . . Largest Inventory Capacity 15 | 5 15 Average Capacity 6 | 5 14 Most Carried 7 | 5 7 Average Carried 4 | 4 5 Final Capacity 15 | 5 15 Final Carried 6 | 3 6 Class Distribution -------------------- 100% | Mutant Dominant Class ---------------- Mutant | -10/Materials Resources | -11 -10 ----------- Run | Yrd Mat Matter Collected 253 | 220 33 Remotely . | . . Salvage Created 33 | . 33 Parts 3 | . 3 Haulers Intercepted . | . . Recyclers Shooed . | . . Parts Field Recycled . | . . Retrieved Matter . | . . Parts Self-Destructed . | . . Prevented . | . . Kills | -11 -10 ------- Run | Yrd Mat Combat Hostiles Destroyed 1 | . 1 Guns 1 | . 1 Classes Destroyed 1 | . 1 Grunt 1 | . 1 Best Kill Streak 1 | . 1 Combat Bots Only 1 | . 1 Max Kills in Single Turn 1 | . 1 Gunslinging . | . . Exploded . | . . Melee . | . . Uniques/NPCs Destroyed . | . . Combat | -11 -10 -------- Run | Yrd Mat Hostile Shots Fired 51 | 7 44 Missed 15 | . 15 Damage Taken 754 | 350 404 Core 253 | 98 155 Absorbed by Shields . | . . Core Remaining (%) 60 | 60 . Volleys Fired 17 | 2 15 Largest 2 | 2 2 Hottest 60 | 60 60 Shots Fired 33 | 3 30 Gun 33 | 3 30 Cannon . | . . Launcher . | . . Special . | . . Kinetic 23 | 2 21 Thermal 9 | . 9 Explosive . | . . Electromagnetic 1 | 1 . Robot Hit Streak 9 | 1 9 Robot Miss Streak 3 | 2 3 Penetration Max . | . . Secondary Targets . | . . Shots Hit Robots 23 | 1 22 Core Hits 5 | . 5 Critical Kills . | . . Critical Parts Destroyed . | . . Critical Strikes . | . . Melee Attacks . | . . Impact . | . . Slashing . | . . Piercing . | . . Sneak Attacks . | . . Combat Hostiles . | . . Follow-up Attacks . | . . Damage Inflicted 256 | 26 230 Guns 249 | 26 223 Cannons . | . . Explosions . | . . Melee . | . . Ramming 7 | . 7 Kinetic 185 | 15 170 Thermal 53 | . 53 Explosive . | . . Electromagnetic 11 | 11 . Impact . | . . Slashing . | . . Piercing . | . . Highest Corruption . | . . Average Corruption . | . . Corruption Purged . | . . Corruption Blocked . | . . Overload Shots . | . . Overflow Damage . | . . Projectiles . | . . Explosions . | . . Melee . | . . Knockbacks . | . . Impact . | . . Kinetic . | . . Secondary . | . . Self-Inflicted Damage 2 | . 2 Shots . | . . Rammed 5 | . 5 Targets Rammed 7 | 2 5 Kicked 2 | 2 . Crushed . | . . Highest Temperature 160 | . 160 Average Temperature 80 | . 80 Received Heat Transfer 219 | . 219 Siege Activations . | . . Robots Corrupted . | . . Combat Hostiles . | . . Parts Fried . | . . Impact Corruptions . | . . Robots Melted . | . . Combat Hostiles . | . . Parts Melted . | . . Heat Transferred 125 | . 125 Parts Sabotaged . | . . Parts Stolen . | . . Parts Stripped . | . . Power Chain Reactions . | . . Alert | -11 -10 ------- Run | Yrd Mat Peak Influence 20 | . 20 Initial . | . . Average 1 | . 10 Maximum Alert Level . | . . Low Security (%) 100 | 100 100 Level 1 . | . . Level 2 . | . . Level 3 . | . . Level 4 . | . . Level 5 . | . . High Security . | . . Max Security . | . . Squads Dispatched 1 | . 1 Investigation 1 | . 1 Extermination . | . . Reinforcement . | . . Assault . | . . Garrison . | . . Intercept . | . . Searches Triggered . | . . Construction Impeded . | . . Haulers Reinforced . | . . Active Scanning Responses . | . . Cargo Convoy Interrupts . | . . Stealth | -11 -10 --------- Run | Yrd Mat Distress Signals . | . . Communications Jammed . | . . Distress Signals . | . . Times Spotted 7 | 2 5 Peak Tracking Total 4 | 2 4 Tactical Retreats . | . . Traps | -11 -10 ------- Run | Yrd Mat Traps Triggered 1 | . 1 Indirectly . | . . Trap Hack Attempts . | . . Triggered . | . . Disarmed . | . . Reprogrammed . | . . Reused . | . . Traps Extracted . | . . Installed . | . . Triggered . | . . Machines | -11 -10 ---------- Run | Yrd Mat Machines Disabled . | . . Max in Single Turn . | . . Machines Repaired . | . . Machines Dismantled . | . . Machines Sabotaged . | . . Overloaded Fab Kills . | . . Hacking | -11 -10 --------- Run | Yrd Mat Machines Accessed . | . . Terminals . | . . Fabricators . | . . Repair Stations . | . . Recycling Units . | . . Scanalyzers . | . . Garrison Access . | . . Total Hacks . | . . Successful . | . . Failed . | . . Catastrophic . | . . Database Lockouts . | . . Manual . | . . Terminals . | . . Fabricators . | . . Repair Stations . | . . Recycling Units . | . . Scanalyzers . | . . Garrison Access . | . . Terminal Hacks . | . . Fabricator Hacks . | . . Repair Station Hacks . | . . Recycling Unit Hacks . | . . Scanalyzer . | . . Garrison Access Hacks . | . . Unauthorized Hacks . | . . Terminals . | . . Fabricators . | . . Repair Stations . | . . Recycling Units . | . . Scanalyzers . | . . Garrison Access . | . . Data Cores Recovered . | . . Used . | . . Hacking Detections . | . . Full Trace Events . | . . Feedback Events . | . . Feedback Blocked . | . . Robot Schematics Acquired . | . . Robots Built . | . . Authchips . | . . Time . | . . Total Robot Build Rating . | . . Part Schematics Acquired . | . . Parts Built . | . . Authchips . | . . Time . | . . Total Part Build Rating . | . . Parts Repaired . | . . Time . | . . Parts Recycled . | . . Recycled Matter . | . . Retrieved Matter . | . . Retrieved Components . | . . Parts Scanalyzed . | . . Part Schematics Acquired . | . . Parts Damaged . | . . Bothacking | -11 -10 ------------ Run | Yrd Mat Used RIF Installer . | . . Robots Hacked . | . . Non-combat . | . . Combat . | . . Robot Hacks Applied . | . . Relay Couplers Released . | . . Fabnet Peak Effective % . | . . Robots Rewired . | . . Allies Hacked . | . . Hacks Repelled . | . . Allies | -11 -10 -------- Run | Yrd Mat Total Allies . | . . Largest Group . | . . Highest-Rated Group . | . . Highest-Rated Ally . | . . Total Orders . | . . Ally Attacks . | . . Total Damage . | . . Kills . | . . Allies Corrupted . | . . Allies Melted . | . . Intel | -11 -10 ------- Run | Yrd Mat Robot Analysis Total . | . . Derelict Logs Recovered . | . . Drone Launches . | . . Drone Recoveries . | . . Exploration | -11 -10 ------------- Run | Yrd Mat Turns Passed 1145 | 1007 138 Spaces Moved 149 | 77 72 Core 6 | 6 . Treads . | . . Legs 70 | 70 . Wheels 73 | 1 72 Hover . | . . Flight . | . . Fastest Speed 50 | 50 100 Average Speed 107 | 114 100 Slowest Speed 120 | 120 115 Overloaded Moves . | . . Propulsion Burnouts . | . . Robots Hopped . | . . Cave-ins Triggered . | . . Exploration Rate (%) 12 | 6 18 Regions Visited 1 Branch Regions . Pre-discovered Areas . | . . Known Exits Taken . | . . Unknown Exits Taken 1 | 1 . Scrap Searched . | . . Spaces Dug . | . . Terrain Destroyed . | . . Melee . | . . Projectile . | . . AOE . | . . Terrain Rammed . | . . Walls Destroyed . | . . Machines Disabled . | . . Actions | -11 -10 --------- Run | Yrd Mat Total 1101 | 990 111 Wait 907 | 895 12 Move 148 | 76 72 Hop . | . . Pick Up 12 | 7 5 Fast Attach 3 | 3 . Attach 6 | 4 2 Detach . | . . Swap 1 | 1 . Drop . | . . Fire 17 | 2 15 Melee . | . . Ram 5 | . 5 Kick 2 | 2 . Crush . | . . Escape Stasis . | . . Rewire . | . . Trap . | . . Miscellaneous . | . . Route ------- -11/Scrapyard -10/Materials History --------- Turn | Location | Event 34 | -11/Scrapyard | Discovered new exit (range 16) 997 | -11/Scrapyard | Assembled infested the area 1008 | -11/Scrapyard | Entered Materials 1035 | -10/Materials | Build established: Mutant 1112 | -10/Materials | Core integrity fell below 50% 1134 | -10/Materials | Core integrity fell below 20% 1146 | -10/Materials | Destroyed by G-34 Mercenary with Small Laser Last Messages --------------- T-07 Excavator is excavating. Triggered Alarm Trap. An alarm sounds. ALERT: Alarm triggered, dispatching investigation squad. K-01 Serf collects debris. Assault Rifle destroyed. Processing Tank disabled. Slammed into G-47 Trooper. Slammed into G-34 Mercenary. Sml. Laser destroyed. Slammed into G-34 Mercenary. Com. Wheel broken. Destabilizing: Short circuit. Ion Engine destroyed. Overweight warning: You are carrying more than your current propulsion can efficiently support, which slows movement; see status page ('s') or the top of the parts list for the specific mass vs. support values. Map ----- +----------------------------------------------------+ | ?????????????????????????????????????????? | | ?????????????????????????????????????????? | | ?????????????????????????????????????????? | | ?????????????????????????????????????????? | | ?????????????????????????????????????????? | | ?????????????????????????????????????????? | | ?????????????????????????????????????????? | | ?????????????????????????????????????????? | | ?????????????????????????????????????????? | | ?????????????????????????????????????????? | | ???????????????????????#?????????????????? | | ????????????????????? ????????????????? | | ???????????????????? ????????????????? | | ????????????????? ??" ????????????????? | | ????????????????? "T ????????????????? | | ????????????????? "" ????????????????? | | ????????????????? ????????????????? | | ?????????????????? ????????????????? | | ?????????????????? ##########??????? | | ?????????????????? # ???????? | | ?????????????????? """ # ?????? | | ?????????????????? """ # """"" ""?????? | | ????????????????# """ # """"" ""?????? | | ????????????????# """ # """" """""??? | | ????????????????# """ # #? | | ???????????# #### @##/####+##?????? | | ???????????# g g ######? | | ?????????? + !! g + ? | | ???????????# ! # # | | ???????????### ################# # """ # | | ??????????????????????# ? ?# # """ # | | ??????????????????????# # # """ # | | ??????????????????????# # # # | | ??????????????????????# + + """ # | | ??????????????????????# # # """ # | | ??????????????????????# ??# # """ # | | ??????????????????????# ????# # # | | ??????????????????????# ??????# # # | | ????????????????????? /????????# # # | | ??????????????????? ??????????# ####### | | ???????????????????????????????# # ! # | | ?????????????????????????????### # # | | ??????????????????????????# # # # | | ??????????????????????????# + """ # | | ??????????????????????????# # # """ # | | ??????????????????????????### # # """ # | | ????????????????????????????##?# # # | | ???????????????????????????????# ####### | | ???????????????????????????????# #?????? | | ????????????????????????????#### #?????? | +----------------------------------------------------+ Best States ------------- Heat Dissipation 25 Energy Generation 10 Energy Capacity 250 Matter Stores 279 Matter Capacity 300 Sight Range 16 Terrain Scan Density 10 Evasion (%) 55 Item Schematics ----------------- None Robot Schematics ------------------ None Fabricated ------------ Nothing Alien Tech Used ----------------- None Achievements -------------- Curiosity Killed The Cat Challenges ------------ None Game ------ Seed GravityCarbideBarrier Manual? 0 Play Time 00:10:59 Cumulative 4.3 hours Start 2024.02.27 @ 22:09:27 End 2024.02.27 @ 22:18:42 Sessions 1 Manual Loads 0 Difficulty Rogue Special Mode None Game No. 9 Rogue 9 Adventurer 0 Explorer 0 Win Type - Total 0 Types 0/0/0/0/0/0/0/0/0 Lore% 3 Gallery% 9 Achievement% 8 Wizard Run 0 Options --------- Layout 1 ASCII 0 Keyboard 0 Movement Arrows Keybinds 0 Fullscreen 1 Font 24/Swanston Map View 50x35 Zoom Use 2% Tactical HUD 0 Map Filters NONE Filters NONE Steam 1 RUN: ecde8f9d-afff-438e-87ba-9c712de664ef